fUST/lending_fUST_20240106
["ID","MTS","AMOUNT","RATE_DAILY","PERIOD"]
[310333233,1704477032362,-167.40216866,0.00020996,2]
[310333234,1704477032372,-155.38327977,0.00020997,2]
[310333235,1704477032381,-58143.30935891,0.00020997,2]
[310333271,1704477038324,-154.82968734,0.00018882,3]
[310333272,1704477038333,-885.97,0.00020987,3]
[310333273,1704477038343,-114.68705834,0.00020997,2]
[310333274,1704477038437,-11557.97299179,0.00020997,2]
[310333275,1704477038446,-689.60286972,0.00020997,2]
[310333276,1704477038456,-155.63510002,0.00020997,2]
[310333277,1704477038465,-16600.72583515,0.00020998,2]
[310333278,1704477038475,-1873.51607924,0.00021,2]
[310333279,1704477038485,-300.0,0.00021,2]
[310333280,1704477038494,-155.84005575,0.00021,2]
[310333281,1704477038503,-251.69233297,0.000239,2]
[310333282,1704477038512,-1193.60075025,0.00024997,2]
[310333283,1704477038521,-524.73174263,0.00024998,2]
[310333284,1704477038530,-613.26381082,0.00025,2]
[310333285,1704477038539,-166.666666,0.0002502,2]
[310333286,1704477038548,-344.31973606,0.00028,2]
[310333287,1704477038557,-251.69233297,0.000289,2]
[310333288,1704477038565,-852.41517296,0.00028996,2]
[310333289,1704477038574,-273.22384269,0.00028997,2]
[310333290,1704477038583,-3003.59607844,0.00029,2]
[310333291,1704477038592,-1819.84465006,0.00029,2]
[310333292,1704477038601,-1342.51634514,0.00029398,2]
[310333293,1704477038610,-1263.99402759,0.000297,2]
[310333294,1704477038618,-155.12995769,0.00029998,2]
[310333295,1704477038627,-413.28606495,0.00029998,2]
[310333296,1704477038636,-155.12945877,0.00029998,2]
[310333297,1704477038645,-1787.27548705,0.00029998,2]
[310333298,1704477038655,-2224.81207994,0.00029998,5]
[310333299,1704477038664,-1746.5003116,0.00029998,2]
[310333300,1704477038673,-254.97781152,0.00029998,2]
[310333301,1704477038682,-475.4838903,0.00029999,2]
[310333302,1704477038691,-243.43593693,0.0003,4]
[310333303,1704477038700,-24712.31661194,0.0003,3]
[310333304,1704477038709,-16729.65527347,0.0003,10]
[310333305,1704477038721,-2223.70000007,0.0003,10]
[310333350,1704477041411,-1131.64037124,0.0003,10]
[310333354,1704477041423,-37263.8898555,0.0003,10]
[310333357,1704477041432,-685.71824329,0.0003,4]
[310333359,1704477041442,-154.84515485,0.0003,4]
[310333360,1704477041451,-4308.67640274,0.00032053,4]
[310333362,1704477041461,-155.03786366,0.00033997,4]
[310333364,1704477041470,-383.08880679,0.00033997,4]
[310333366,1704477041479,-273.00037373,0.00033997,4]
[310333368,1704477041489,-555.8426536,0.00033997,4]
[310333370,1704477041499,-1448.6053566,0.00033997,2]
[310333373,1704477041508,-446.72673826,0.00033998,4]
[310333375,1704477041517,-400.67072406,0.00033998,4]
[310333377,1704477041527,-1000.0,0.00034,7]
[310333379,1704477041536,-2000.0,0.000345,2]
[310333381,1704477041546,-898.3272,0.00034521,2]
[310333383,1704477041555,-4555.23511167,0.00034999,2]
[310333385,1704477041567,-3339.59298272,0.00034999,2]
[310333387,1704477041576,-2870.28186294,0.00035,2]
[310333389,1704477041585,-590.61742421,0.00035,2]
[310333391,1704477041595,-1386.63922446,0.00035,4]
[310333450,1704477043346,-911.90111286,0.00033998,2]
[310333695,1704478232437,-367.287296,0.00017626,2]
[310333758,1704478238481,-1097.55825845,0.00017626,2]
[310333760,1704478238492,-322.52163965,0.00017626,2]
[310333762,1704478238502,-154.79876161,0.00017627,2]
[310333764,1704478238511,-65.75023,0.00017627,3]
[310333766,1704478238524,-89.04853161,0.00017627,3]
[310333768,1704478238533,-606.05349002,0.00017627,2]
[310333770,1704478238543,-1999.57824327,0.00017642,2]
[310333772,1704478238557,-22900.42175673,0.00017642,2]
[310333774,1704478238567,-5000.0,0.00018166,2]
[310333776,1704478238577,-3146.0219167,0.000183,2]
[310333778,1704478238587,-234.423833,0.00018426,2]
[310333780,1704478238597,-184.85176643,0.00018785,2]
[310333782,1704478238607,-174.404516,0.00019178,2]
[310333784,1704478238617,-396.4956409,0.00019309,2]
[310333786,1704478238627,-250.0,0.00019309,2]
[310333788,1704478238638,-628.8587347,0.00019315,2]
[310333790,1704478238647,-1525.6837021,0.00019502,2]
[310333791,1704478238658,-13279.2215757,0.00019502,2]
[310333793,1704478238667,-268.84623799,0.0002,2]
[310333795,1704478238676,-2991.35420991,0.0002,2]
[310333797,1704478238686,-154.79876161,0.0002,2]
[310333799,1704478238695,-676.23478638,0.0002,2]
[310333813,1704478238817,-1710.159289,0.0002,2]
[310333815,1704478238827,-1710.159289,0.0002,2]
[310333817,1704478238837,-1710.159289,0.0002,2]
[310333819,1704478238848,-1710.159289,0.0002,2]
[310333821,1704478238857,-1710.159289,0.0002,2]
[310333823,1704478238867,-154.87609912,0.0002,2]
[310333825,1704478238876,-8055.00565888,0.00020996,2]
[310333827,1704478238885,-273.22384269,0.0002149,2]
[310333829,1704478238895,-166.666666,0.00021918,2]
[310333831,1704478238903,-166.666666,0.00022431,2]
[310333832,1704478238912,-166.666666,0.00022944,2]
[310333834,1704478238921,-9907.49920413,0.00023,2]
[310333836,1704478238930,-166.666666,0.00023456,2]
[310333838,1704478238939,-166.666666,0.00023969,2]
[310333840,1704478238949,-166.666666,0.00024482,2]
[310333842,1704478238958,-5262.05814536,0.00026998,2]
[310333844,1704478238967,-234.423833,0.00027638,2]
[310333846,1704478238977,-344.31973606,0.00028,2]
[310333848,1704478238986,-174.54787,0.00029699,2]
[310333850,1704478238995,-164.50453333,0.000299,2]
[310333852,1704478239004,-996.0,0.0002999,3]
[310333854,1704478239013,-830.0,0.0002999,3]
[310333856,1704478239022,-178.24808117,0.00029998,2]
[310333857,1704478239031,-235.76417524,0.00029998,2]
[310333858,1704478239040,-293.96606539,0.00029998,2]
[310333859,1704478239050,-2750.21591567,0.0003,2]
[310333860,1704478239059,-28124.30910027,0.0003,30]
[310333861,1704478239068,-692.27714408,0.00033737,2]
[310333862,1704478239077,-186.74393142,0.0003393,2]
[310333863,1704478239086,-155.00030234,0.00033996,4]
[310333864,1704478239094,-264.55652155,0.00033996,4]
[310333865,1704478239103,-510.65935602,0.00033997,2]
[310333866,1704478239112,-393.41528718,0.00033997,2]
[310333867,1704478239120,-306.1941418,0.00033997,4]
[310333868,1704478239129,-154.81422293,0.00033998,4]
[310333869,1704478239138,-921.51950466,0.00033998,4]
[310333870,1704478239146,-4035.54175606,0.00033998,4]
[310333871,1704478239155,-2445.08878127,0.00033998,2]
[310333872,1704478239164,-154.81422293,0.00033998,4]
[310333873,1704478239173,-300.0,0.00033998,4]
[310333874,1704478239182,-467.46613374,0.00033998,2]
[310333875,1704478239191,-155.16578643,0.00033998,2]
[310333876,1704478239200,-25322.75625323,0.00033998,4]
[310333877,1704478239209,-716.90104227,0.00033998,4]
[310333878,1704478239218,-154.79876161,0.00033998,14]
[310333879,1704478239226,-155.76608,0.00033998,4]
[310333880,1704478239235,-13585.27648607,0.00033998,4]
[310333881,1704478239244,-154.79876161,0.00033998,4]
[310333882,1704478239253,-14869.27055005,0.00033998,14]
[310334022,1704478241457,-5946.99696762,0.00017626,2]
[310334023,1704478241467,-975.04064545,0.00017626,2]
[310334024,1704478241477,-995.33,0.00033988,3]
[310334025,1704478241487,-76264.2916866,0.00033998,14]
[310334028,1704478241499,-7981.2999999,0.00033998,14]
[310334105,1704478242118,-1001.19827136,0.00033998,14]
[310334107,1704478242132,-423.11121465,0.00033998,14]
[310334109,1704478242145,-838.31494696,0.00033998,14]
[310334589,1704478246384,-1260.09265858,0.00033998,14]
[310334596,1704478246443,-58732.67917013,0.00033998,14]
[310334598,1704478246453,-2790.68610776,0.00033998,4]
[310334600,1704478246462,-4311.03411719,0.00033998,4]
[310334602,1704478246472,-6998.76289137,0.00033998,2]
[310334604,1704478246481,-245.01576584,0.00033998,4]
[310334606,1704478246490,-154.79876161,0.00033998,4]
[310334608,1704478246500,-344.3089772,0.00033998,4]
[310334610,1704478246509,-1000.0,0.00034,7]
[310334612,1704478246520,-160.21132361,0.00034243,2]
[310334614,1704478246530,-222.8,0.00034489,2]
[310334616,1704478246539,-2000.0,0.000345,2]
[310334618,1704478246549,-1061.763841,0.00034521,2]
[310334620,1704478246558,-3472.7300767,0.00034788,4]
[310334622,1704478246568,-386.47698545,0.000349,2]
[310334624,1704478246577,-9318.06179475,0.00035,4]
[310334627,1704478246589,-1820.63040633,0.00035,4]
[310334628,1704478246599,-171.24538583,0.000351,2]
[310334631,1704478246608,-2121.13979278,0.00035258,4]
[310334633,1704478246617,-207.26619927,0.0003538,2]
[310334634,1704478246627,-792.14825987,0.0003538,2]
[310334637,1704478246637,-426.1713042,0.0003538,2]
[310334639,1704478246647,-7296.30626221,0.0003538,2]
[310334641,1704478246656,-1532.22431507,0.0003538,2]
[310334643,1704478246666,-159.7975088,0.0003538,2]
[310334645,1704478246676,-1000.0,0.0003538,10]
[310334647,1704478246685,-1396.51,0.00035399,2]
[310334649,1704478246694,-1396.51,0.00035399,2]
[310334650,1704478246703,-1396.51,0.00035399,2]
[310334652,1704478246712,-1396.51,0.00035399,2]
[310334654,1704478246722,-1396.51,0.00035399,2]
[310334656,1704478246732,-1396.51,0.00035399,2]
[310334658,1704478246741,-1396.51,0.00035399,2]
[310334660,1704478246751,-1396.51,0.00035399,2]
[310334662,1704478246760,-1396.51,0.00035399,2]
[310334664,1704478246769,-218.85400972,0.00035399,7]
[310334666,1704478246778,-236.04917231,0.00035399,7]
[310334668,1704478246787,-360.8535124,0.00035399,4]
[310334670,1704478246796,-53737.22466974,0.000354,2]
[310334672,1704478246808,-8660.0,0.000354,2]
[310334674,1704478246819,-3671.45104743,0.000354,2]
[310334676,1704478246831,-1720.36508219,0.000354,2]
[310338114,1704478476629,23691.16561765,0.00016767,2]
[310338115,1704478477073,-1208.83438235,0.00016767,2]
[310338116,1704478477105,-156.97804345,0.00017527,2]
[310338117,1704478477219,-27.87372298,0.00017527,2]
[310338119,1704478497464,-3144.46828509,0.00017527,2]
[310338120,1704478497625,-64.17282214,0.00017527,2]
[310338121,1704478497742,182.36173429,0.00017527,2]
[310338122,1704478505700,-672.1563267,0.00017527,2]
[310338123,1704478505871,-13.71747605,0.00017527,2]
[310338124,1704478505902,-658.43885065,0.00017527,2]
[310338125,1704478505952,-672.1563267,0.00017527,2]
[310338126,1704478506173,-5000.0,0.00017527,2]
[310338127,1704478506273,-5000.0,0.00017527,2]
[310338128,1704478506478,-5000.0,0.00017527,2]
[310338129,1704478506637,-2516.77054827,0.00017527,2]
[310338130,1704478506668,-154.79876161,0.00017527,2]
[310338131,1704478506704,533.57920432,0.00017527,2]
[310338132,1704478509205,154.79876161,0.00017527,2]
[310338133,1704478511576,-2297.74495066,0.00017527,2]
[310338134,1704478511778,-46.89275409,0.00017527,2]
[310338135,1704478519988,-182.36173429,0.00017527,2]
[310338136,1704478520017,-4817.63826571,0.00017527,2]
[310338137,1704478520386,-5000.0,0.00017527,2]
[310338138,1704478520440,-5000.0,0.00017527,2]
[310338139,1704478520484,-2825.35522317,0.00017527,2]
[310338140,1704478520687,533.57920432,0.00017527,2]
[310338141,1704478522058,154.79876161,0.00017527,2]
[310338142,1704478527688,-190.08723595,0.00017527,2]
[310338143,1704478527732,-668.35458198,0.00017527,2]
[310338144,1704478527855,-17.51922077,0.00017527,2]
[310338145,1704478535019,-182.36173429,0.00017527,2]
[310338146,1704478535056,-519.26038555,0.00017527,2]
[310338147,1704478535269,-14.31881877,0.00017527,2]
[310338148,1704478543613,-154.79876161,0.00017527,2]
[310338149,1704478543649,-517.35756509,0.00017527,2]
[310338150,1704478543778,-168.51623766,0.00017527,2]
[310338151,1704478555127,-182.36173429,0.00017527,2]
[310338152,1704478555157,-519.26038555,0.00017527,2]
[310338153,1704478555292,-14.31881877,0.00017527,2]
[310338154,1704478561675,-672.1563267,0.00017527,2]
[310338155,1704478561779,-13.71747605,0.00017527,2]
[310338156,1704478573040,-182.36173429,0.00017527,2]
[310338157,1704478573071,-519.26038555,0.00017527,2]
[310338158,1704478573293,-14.31881877,0.00017527,2]
[310338159,1704478579641,-672.1563267,0.00017527,2]
[310338160,1704478579962,-13.71747605,0.00017527,2]
[310338163,1704478597074,-197.71317073,0.00017527,2]
[310338164,1704478597103,-518.95335682,0.00017527,2]
[310338165,1704478597252,-14.6258475,0.00017527,2]
[310338166,1704478597280,-685.87380275,0.00017527,2]
[310338179,1704478615080,-624.67042321,0.00017527,2]
[310338180,1704478615260,-12.74837598,0.00017527,2]
[310338181,1704478617686,-672.1563267,0.00017527,2]
[310338182,1704478618010,-13.71747605,0.00017527,2]
[310338184,1704478637687,-161.26693346,0.00017527,2]
[310338185,1704478637718,-668.93098803,0.00017527,2]
[310338186,1704478637845,-16.94281472,0.00017527,2]
[310338189,1704478823183,200.0,0.00021239,7]
[310338190,1704478823973,280.0,0.00023363,7]
[310338191,1704478829066,-199.2513521,0.00017527,2]
[310338192,1704478829093,-161.69776023,0.00017527,2]
[310338193,1704478829263,-7.36630841,0.00017527,2]
[310338271,1704479432764,-1.29871902,0.00019283,2]
[310338428,1704479926845,-245.0,0.00017256,2]
[310338429,1704479927030,-5.0,0.00017256,2]
[310338431,1704479989072,-182.36173429,0.00017256,2]
[310338432,1704479989100,-148.05555169,0.00017256,2]
[310338433,1704479989208,-6.74320992,0.00017256,2]
[310338434,1704479992165,-3208.64110723,0.00017256,2]
[310338435,1704479992194,-87.52996423,0.00017256,2]
[310338436,1704479992297,-67.26879738,0.00017256,2]
[310338437,1704479992469,3228.90227408,0.00017256,2]
[310338438,1704479992498,1980.17696364,0.00017256,2]
[310338439,1704479993905,685.87380275,0.00017256,2]
[310338440,1704479996661,-154.79876161,0.00017256,2]
[310338441,1704479996690,-532.20057363,0.00017256,2]
[310338442,1704479997007,-14.0203946,0.00017256,2]
[310338443,1704479997083,154.79876161,0.00017256,2]
[310338444,1704480006281,-154.79876161,0.00017256,2]
[310338445,1704480006313,-669.06035146,0.00017256,2]
[310338446,1704480006479,-16.81345129,0.00017256,2]
[310338447,1704480007785,255.17847218,0.00017256,2]
[310338448,1704480010378,-219.37930771,0.00017256,2]
[310338449,1704480010584,-4.47712873,0.00017256,2]
[310338450,1704480010617,-214.90217898,0.00017256,2]
[310338451,1704480010670,-331.31878925,0.00017256,2]
[310338452,1704480010703,-182.36173429,0.00017256,2]
[310338453,1704480011573,240.99533304,0.00017255,2]
[310338454,1704480011604,618.93938125,0.00017255,2]
[310338455,1704480012083,99.45925338,0.00017255,2]
[310338456,1704480012112,718.39863463,0.00017255,2]
[310338457,1704480012140,503.40691307,0.00017255,2]
[310338458,1704480012169,503.40691307,0.00017255,2]
[310338459,1704480012479,-1045.47798293,0.00017255,2]
[310338460,1704480012977,-5000.0,0.00017256,2]
[310338461,1704480013097,-209.07923772,0.00017256,2]
[310338462,1704480013809,154.79876161,0.00017256,2]
[310338463,1704480015089,296.7621085,0.00017256,2]
[310338464,1704480016793,-2578.3321023,0.00017247,2]
[310338465,1704480016883,-52.6190225,0.00017247,2]
[310338466,1704480020905,-5000.0,0.00017256,2]
[310338467,1704480021111,-5000.0,0.00017256,2]
[310338468,1704480021219,-270.13461004,0.00017256,2]
[310338469,1704480022733,154.79876161,0.00017256,2]
[310338470,1704480023827,280.0,0.00022071,7]
[310338471,1704480023917,685.06285325,0.00017256,2]
[310338472,1704480028812,-5000.0,0.00017256,2]
[310338473,1704480029098,-209.07923772,0.00017256,2]
[310338474,1704480031212,4790.92076228,0.00017256,2]
[310338475,1704480031243,204.89765297,0.00017256,2]
[310338476,1704480031272,204.89765297,0.00017256,2]
[310338477,1704480031689,-5000.0,0.00017256,2]
[310338478,1704480031794,-5000.0,0.00017256,2]
[310338479,1704480031989,-5000.0,0.00017256,2]
[310338480,1704480032108,-5000.0,0.00017256,2]
[310338481,1704480032530,-5000.0,0.00017256,2]
[310338482,1704480032571,-5000.0,0.00017256,2]
[310338483,1704480032613,-5000.0,0.00017256,2]
[310338484,1704480032696,-5000.0,0.00017256,2]
[310338485,1704480032795,-5000.0,0.00017256,2]
[310338486,1704480032914,-5000.0,0.00017256,2]
[310338487,1704480033141,-5000.0,0.00017256,2]
[310338488,1704480033195,-5000.0,0.00017256,2]
[310338489,1704480033263,-5000.0,0.00017256,2]
[310338490,1704480033392,-5000.0,0.00017256,2]
[310338491,1704480033493,-5000.0,0.00017256,2]
[310338492,1704480033601,-5000.0,0.00017256,2]
[310338493,1704480033695,-5000.0,0.00017256,2]
[310338494,1704480033815,-5000.0,0.00017256,2]
[310338495,1704480033931,-5000.0,0.00017256,2]
[310338496,1704480034046,-5000.0,0.00017256,2]
[310338497,1704480034149,-5000.0,0.00017256,2]
[310338498,1704480034252,-5000.0,0.00017256,2]
[310338499,1704480034357,-5000.0,0.00017256,2]
[310338500,1704480034482,-5000.0,0.00017256,2]
[310338501,1704480034584,-5000.0,0.00017256,2]
[310338502,1704480034697,-5000.0,0.00017256,2]
[310338503,1704480034812,-5000.0,0.00017256,2]
[310338504,1704480034915,-5000.0,0.00017256,2]
[310338505,1704480035006,-5000.0,0.00017256,2]
[310338506,1704480035117,-5000.0,0.00017256,2]
[310338507,1704480035321,-5000.0,0.00017256,2]
[310338508,1704480035431,-5000.0,0.00017256,2]
[310338509,1704480035560,-5000.0,0.00017256,2]
[310338510,1704480035875,-5000.0,0.00017256,2]
[310338511,1704480036003,-5000.0,0.00017256,2]
[310338512,1704480036208,-5000.0,0.00017256,2]
[310338513,1704480036261,-5000.0,0.00017256,2]
[310338514,1704480036364,-5000.0,0.00017256,2]
[310338515,1704480036473,-5000.0,0.00017256,2]
[310338516,1704480036596,-5000.0,0.00017256,2]
[310338517,1704480037322,-5000.0,0.00017256,2]
[310338518,1704480037360,-5000.0,0.00017256,2]
[310338519,1704480037440,-5000.0,0.00017256,2]
[310338520,1704480037481,-5000.0,0.00017256,2]
[310338521,1704480037533,-5000.0,0.00017256,2]
[310338522,1704480037581,-5000.0,0.00017256,2]
[310338523,1704480037698,-5000.0,0.00017256,2]
[310338524,1704480037740,-5000.0,0.00017256,2]
[310338525,1704480037777,-5000.0,0.00017256,2]
[310338526,1704480037896,-5000.0,0.00017256,2]
[310338527,1704480038004,-5000.0,0.00017256,2]
[310338528,1704480038092,-5000.0,0.00017256,2]
[310338529,1704480038159,-5000.0,0.00017256,2]
[310338530,1704480038354,-5000.0,0.00017256,2]
[310338531,1704480038454,-5000.0,0.00017256,2]
[310338532,1704480038587,-2943.18114819,0.00017256,2]
[310338533,1704480038617,-546.22096823,0.00017256,2]
[310338534,1704480038653,-182.36173429,0.00017256,2]
[310338535,1704480038685,-154.79876161,0.00017256,2]
[310338536,1704480038717,-154.79876161,0.00017256,2]
[310338537,1704480038748,-1018.63862607,0.00017256,2]
[310338538,1704480038790,-5000.0,0.00017256,2]
[310338539,1704480038882,-4251.49598397,0.00017256,2]
[310338540,1704480038912,-154.79876161,0.00017256,2]
[310338541,1704480040494,261.48680774,0.00017255,2]
[310338542,1704480050010,-264.60266705,0.00017254,2]
[310338543,1704480050038,-164.74006432,0.00017255,2]
[310338544,1704480050066,-4570.65726863,0.00017256,2]
[310338545,1704480050358,-638.42196909,0.00017256,2]
[310338546,1704480050391,-545.31034767,0.00017256,2]
[310338547,1704480050441,182.36173429,0.00017256,2]
[310338548,1704480050961,642.26237757,0.00017254,2]
[310338551,1704480054141,-200.0,0.00017256,2]
[310338552,1704480054215,-2.19009901,0.00017256,2]
[310338553,1704480054249,-154.79876161,0.00017256,2]
[310338554,1704480055216,192.86022279,0.00017256,2]
[310338555,1704480055248,349.84908341,0.00017256,2]
[310338556,1704480055279,349.84908341,0.00017256,2]
[310338557,1704480055747,-5000.0,0.00017256,2]
[310338558,1704480055945,-5000.0,0.00017256,2]
[310338559,1704480056041,-5000.0,0.00017256,2]
[310338560,1704480056144,-5000.0,0.00017256,2]
[310338561,1704480056249,-5000.0,0.00017256,2]
[310338562,1704480056368,-5000.0,0.00017256,2]
[310338563,1704480056471,-5000.0,0.00017256,2]
[310338564,1704480056590,-5000.0,0.00017256,2]
[310338565,1704480056699,-5000.0,0.00017256,2]
[310338566,1704480056808,-5000.0,0.00017256,2]
[310338567,1704480056926,-5000.0,0.00017256,2]
[310338568,1704480057034,-5000.0,0.00017256,2]
[310338569,1704480057148,-5000.0,0.00017256,2]
[310338570,1704480057281,-5000.0,0.00017256,2]
[310338571,1704480057374,-5000.0,0.00017256,2]
[310338572,1704480057490,-5000.0,0.00017256,2]
[310338573,1704480057605,-5000.0,0.00017256,2]
[310338574,1704480057707,-5000.0,0.00017256,2]
[310338575,1704480057815,-5000.0,0.00017256,2]
[310338576,1704480057940,-5000.0,0.00017256,2]
[310338577,1704480058043,-5000.0,0.00017256,2]
[310338578,1704480058278,-5000.0,0.00017256,2]
[310338579,1704480058313,-5000.0,0.00017256,2]
[310338580,1704480058403,-5000.0,0.00017256,2]
[310338581,1704480058509,-5000.0,0.00017256,2]
[310338582,1704480058851,-5000.0,0.00017256,2]
[310338583,1704480059027,-5000.0,0.00017256,2]
[310338584,1704480059127,-5000.0,0.00017256,2]
[310338585,1704480059284,-5000.0,0.00017256,2]
[310338586,1704480059534,-5000.0,0.00017256,2]
[310338587,1704480059575,-5000.0,0.00017256,2]
[310338588,1704480059672,-5000.0,0.00017256,2]
[310338589,1704480059817,-5000.0,0.00017256,2]
[310338590,1704480059974,-5000.0,0.00017256,2]
[310338591,1704480060077,-5000.0,0.00017256,2]
[310338592,1704480060181,-5000.0,0.00017256,2]
[310338593,1704480060306,-5000.0,0.00017256,2]
[310338594,1704480060406,-5000.0,0.00017256,2]
[310338595,1704480060517,-5000.0,0.00017256,2]
[310338596,1704480060668,-5000.0,0.00017256,2]
[310338597,1704480060755,-5000.0,0.00017256,2]
[310338598,1704480060852,-5000.0,0.00017256,2]
[310338599,1704480060967,-5000.0,0.00017256,2]
[310338600,1704480061076,-5000.0,0.00017256,2]
[310338601,1704480061185,-5000.0,0.00017256,2]
[310338602,1704480061293,-5000.0,0.00017256,2]
[310338603,1704480061402,-2660.89597385,0.00017256,2]
[310338604,1704480061430,-2339.10402615,0.00017256,2]
[310338605,1704480061506,-5000.0,0.00017256,2]
[310338606,1704480061628,-2931.03058389,0.00017256,2]
[310338607,1704480062130,252.98251314,0.00017255,2]
[310338608,1704480063697,164.43626199,0.00017255,2]
[310338609,1704480064208,322.52163965,0.00017255,2]
[310338610,1704480067826,-5000.0,0.00017256,2]
[310338611,1704480068006,-209.07923772,0.00017256,2]
[310338612,1704480069828,194.19965009,0.00017256,2]
[310338613,1704480071840,-154.79876161,0.00017255,2]
[310338614,1704480071869,-175.61852437,0.00017256,2]
[310338615,1704480072084,-6.74320992,0.00017256,2]
[310338616,1704480082928,-198.63264518,0.00017255,2]
[310338617,1704480082957,-4801.36735482,0.00017256,2]
[310338618,1704480083421,-5000.0,0.00017256,2]
[310338619,1704480083718,-468.76725522,0.00017256,2]
[310338620,1704480204631,760.75588404,0.00015522,2]
[310338623,1704480216923,1899.8684551,0.0001625,2]
[310338624,1704480217472,740.1692428,0.00016376,2]
[310338625,1704480237672,21049.20641806,0.0001625,2]
[310338626,1704480237705,17065.12479474,0.0001625,2]
[310338628,1704480257751,5000.0,0.00016241,2]
[310338629,1704480266954,182.36173429,0.0001625,2]
[310338630,1704480266999,5209.07923772,0.0001625,2]
[310338632,1704480271191,10270.13461004,0.0001625,2]
[310338633,1704480280004,5209.07923772,0.0001625,2]
[310338636,1704480284956,182.36173429,0.0001625,2]
[310338638,1704480288999,5013.532232,0.0001625,2]
[310338641,1704480291328,-5946.99696762,0.00017233,2]
[310338642,1704480291375,-198.63264518,0.00017234,2]
[310338643,1704480291414,-2509.67018179,0.00017234,2]
[310338644,1704480291450,-298.48515016,0.00017234,2]
[310338645,1704480291486,-590.83177364,0.00017234,2]
[310338646,1704480291521,-975.04064545,0.00017234,2]
[310338647,1704480291558,-859.93471429,0.00017235,2]
[310338648,1704480291594,-154.79876161,0.00017235,2]
[310338649,1704480291629,-1464.84555445,0.00017235,2]
[310338651,1704480291664,-606.05349002,0.00017235,2]
[310338652,1704480291700,-1977.78283939,0.00017235,2]
[310338653,1704480291891,-7717.79140574,0.00017235,2]
[310338654,1704480294000,1590.86092435,0.0001625,2]
[310338657,1704480303599,975.04064545,0.0001551,2]
[310338658,1704480306215,1464.84555445,0.00012925,2]
[310338659,1704480306654,5946.99696762,0.0001551,2]
[310338660,1704480307064,182.36173429,0.0001625,2]
[310338662,1704480320496,-2870.14969708,0.0001723,2]
[310338663,1704480320531,-7547.80635165,0.0001723,2]
[310338664,1704480320567,-154.79876161,0.0001723,3]
[310338665,1704480322648,3854.49037932,0.0001551,2]
[310338666,1704480322676,2092.5065883,0.0001551,2]
[310338667,1704480324326,1464.84555445,0.00012925,2]
[310338668,1704480324970,319.93042786,0.0001625,2]
[310338669,1704480325610,333.37930055,0.0001551,2]
[310338672,1704480336187,6937.43692916,0.0001551,2]
[310338673,1704480339318,154.79876161,0.00015506,2]
[310338674,1704480340650,1245.76372875,0.00015506,2]
[310338675,1704480342339,1464.84555445,0.00012922,2]
[310338676,1704480344157,-242.32989886,0.00017229,2]
[310338677,1704480344191,-1645.1905052,0.0001723,2]
[310338678,1704480355313,154.79876161,0.00015506,2]
[310338679,1704480358254,1464.84555445,0.00012922,2]
[310338680,1704480364061,-298.48515016,0.00017228,2]
[310338681,1704480364097,-154.79876161,0.00017228,2]
[310338682,1704480364134,-3474.24686337,0.00017228,2]
[310338683,1704480364167,-1574.23522059,0.00017229,2]
[310338684,1704480364201,-3097.1934372,0.00017229,2]
[310338686,1704480373421,-606.05349002,0.00017227,2]
[310338687,1704480373457,-3148.14500459,0.00017228,2]
[310338688,1704480373493,-4838.67771821,0.00017229,2]
[310338689,1704480373529,-241.61980304,0.00017229,2]
[310338690,1704480373564,-1224.95919188,0.0001723,2]
[310338691,1704480376222,1464.84555445,0.00012921,2]
[310338692,1704480380502,660.0666605,0.00016883,2]
[310338693,1704480382332,11452.59849502,0.0001625,2]
[310338694,1704480382359,13447.40150498,0.0001625,2]
[310338695,1704480392240,-198.63264518,0.00017228,2]
[310338696,1704480392273,-154.79876161,0.00017228,2]
[310338697,1704480392308,-206.45527042,0.00017228,2]
[310338698,1704480392341,-4551.56957659,0.00017228,2]
[310338699,1704480392374,-2870.14969708,0.00017228,2]
[310338700,1704480392408,-1571.77414009,0.00017229,2]
[310338701,1704480392441,-441.89168128,0.00017229,2]
[310338703,1704480404365,755.3702299,0.00012921,2]